bitfinex-derivatives/quotes_BTCF0:USTF0_20251210
["timestamp","ask_amount","ask_price","bid_price","bid_amount"]
[1765396224345,0.3608,92664.0,92663.0,0.0107909]
[1765396224739,0.3608,92674.0,92673.0,0.0107897]
[1765396224939,0.3608,92683.0,92682.0,0.0107887]
[1765396225140,0.3608,92683.0,92675.0,0.0107895]
[1765396225339,0.3608,92683.0,92678.0,0.0107891]
[1765396225854,0.0107887,92682.0,92670.0,0.00016186]
[1765396226054,0.3608,92671.0,92670.0,0.00016186]
[1765396227147,0.3608,92671.0,92670.0,0.01095196]
[1765396227340,0.3608,92671.0,92670.0,0.00016186]
[1765396227535,0.3638,92671.0,92670.0,0.00016186]
[1765396227937,0.3638,92671.0,92658.0,0.0107914]
[1765396228141,0.3638,92671.0,92661.0,0.0107911]
[1765396228142,0.3608,92662.0,92661.0,0.0107911]
[1765396229053,0.36596186,92671.0,92670.0,0.0107901]
[1765396229450,0.36296186,92671.0,92670.0,0.0107901]
[1765396229646,0.36096186,92671.0,92670.0,0.0107901]
[1765396229850,0.36096186,92671.0,92652.0,0.0001088]
[1765396230048,0.0107917,92656.0,92652.0,0.0001088]
[1765396230243,0.3608,92653.0,92630.0,0.21865683]
[1765396230442,0.3608,92643.0,92642.0,0.0107933]
[1765396230646,0.3608,92643.0,92630.0,0.21865683]
[1765396230850,0.3608,92643.0,92641.0,0.0107934]
[1765396232149,0.36096186,92651.0,92650.0,0.0107924]
[1765396232544,0.36096186,92651.0,92641.0,0.0107934]
[1765396232746,0.3608,92642.0,92639.0,0.0107937]
[1765396233147,0.00016186,92651.0,92650.0,0.0107924]
[1765396233451,0.00116186,92651.0,92650.0,0.0107924]
[1765396233941,0.00116186,92651.0,92628.0,0.0107949]
[1765396234147,0.3608,92639.0,92638.0,0.0107938]
[1765396234446,0.00116186,92651.0,92650.0,0.0107924]
[1765396235446,0.00016186,92651.0,92650.0,0.0107924]
[1765396236054,0.00116186,92651.0,92650.0,0.0107924]
[1765396236651,0.00216186,92651.0,92650.0,0.0107924]
[1765396238446,0.3608,92679.0,92676.0,0.0107894]
[1765396238651,0.3608,92679.0,92660.0,0.0107911]
[1765396238652,0.3608,92679.0,92661.0,0.010791]
[1765396238859,0.3608,92665.0,92640.0,0.3608]
[1765396239156,0.3608,92665.0,92652.0,0.0107922]
[1765396239157,0.3608,92653.0,92652.0,0.0107922]
[1765396239752,0.3608,92653.0,92650.0,0.002]
[1765396239954,0.3608,92653.0,92651.0,0.0107923]
[1765396240451,0.00016186,92662.0,92661.0,0.0107911]
[1765396240652,0.00016186,92662.0,92650.0,0.002]
[1765396240653,0.00016186,92662.0,92650.0,0.22065683]
[1765396240852,0.3608,92651.0,92650.0,0.0127924]
[1765396241149,0.3608,92651.0,92650.0,0.0157924]
[1765396241555,0.3608,92651.0,92650.0,0.0107924]
[1765396242268,0.00216186,92662.0,92661.0,0.0107911]
[1765396242463,0.00016186,92662.0,92661.0,0.0107911]
[1765396243362,0.3608,92691.0,92690.0,0.0107877]
[1765396243857,0.3608,92708.0,92707.0,0.0107858]
[1765396244564,0.08431037,92715.0,92714.0,0.0107849]
[1765396244750,0.00016186,92717.0,92714.0,0.0107849]
[1765396245864,0.00016186,92717.0,92712.0,0.0107852]
[1765396246167,0.3608,92713.0,92712.0,0.0107852]
[1765396246552,0.3608,92713.0,92704.0,0.3608]
[1765396246553,0.3608,92713.0,92710.0,0.0107853]
[1765396247563,0.00016186,92717.0,92716.0,0.0107847]
[1765396247763,0.00016186,92717.0,92716.0,0.3715847]
[1765396248366,0.36187829,92740.0,92729.0,0.0107832]
[1765396248568,0.36187829,92740.0,92730.0,0.21865683]
[1765396248768,0.3608,92732.0,92731.0,0.010783]
[1765396249066,0.00107829,92740.0,92739.0,0.010782]
[1765396249273,0.00107829,92740.0,92726.0,0.3608]
[1765396249459,0.00107829,92740.0,92737.0,0.0107822]
[1765396249655,0.00107829,92740.0,92726.0,0.3608]
[1765396250067,0.00107829,92740.0,92737.0,0.0107822]
[1765396250472,0.00107829,92740.0,92724.0,0.00016176]
[1765396250770,0.3608,92729.0,92724.0,0.00016176]
[1765396250968,0.0107833,92728.0,92724.0,0.00016176]
[1765396251168,0.7216,92729.0,92724.0,0.00016176]
[1765396251365,0.7216,92729.0,92703.0,0.3608]
[1765396251568,0.3608,92712.0,92703.0,0.3608]
[1765396252171,0.3608,92704.0,92684.0,0.3608]
[1765396252367,0.3608,92693.0,92685.0,0.00016176]
[1765396252574,0.3608,92693.0,92691.0,0.0107875]
[1765396253876,0.3628,92693.0,92686.0,0.0107881]
[1765396254077,0.3628,92693.0,92692.0,0.0107875]
[1765396254574,0.3608,92693.0,92692.0,0.0107875]
[1765396254776,0.3608,92693.0,92691.0,0.002]
[1765396255277,0.3608,92692.0,92691.0,0.001]
[1765396255776,0.3608,92692.0,92689.0,0.0107878]
[1765396255972,0.3608,92692.0,92685.0,0.00016176]
[1765396256173,0.0107876,92691.0,92685.0,0.00016176]
[1765396256482,0.3608,92692.0,92685.0,0.00016176]
[1765396256873,0.3608,92692.0,92665.0,0.00010941]
[1765396257178,0.3608,92669.0,92665.0,0.00010941]
[1765396257375,0.3608,92669.0,92666.0,0.0107905]
[1765396257576,0.3608,92669.0,92662.0,0.0107909]
[1765396257775,0.3608,92663.0,92661.0,0.0107911]
[1765396258669,9.085e-05,92662.0,92661.0,0.0107911]
[1765396260078,9.085e-05,92662.0,92661.0,0.4107911]
[1765396260385,0.36096187,92671.0,92670.0,0.0107901]
[1765396260581,1.87e-06,92671.0,92670.0,0.0107901]
[1765396260783,0.3608,92707.0,92705.0,0.0107859]
[1765396261881,0.3638,92707.0,92705.0,0.0107859]
[1765396262074,0.003,92707.0,92705.0,0.0107859]
[1765396262970,0.00107829,92740.0,92706.0,0.4]
[1765396263177,0.00107829,92740.0,92735.0,0.0107825]
[1765396263373,0.21865683,92780.0,92739.0,0.3608]
[1765396263572,0.3608,92773.0,92764.0,0.010779]
[1765396263777,0.3608,92783.0,92774.0,0.0107779]
[1765396263973,0.3608,92783.0,92774.0,0.3715779]
[1765396264188,0.00016169,92788.0,92784.0,0.0107768]
[1765396264380,0.00016169,92795.0,92789.0,0.0107761]
[1765396264678,0.00016169,92801.0,92800.0,0.0107749]
[1765396264880,0.00016169,92810.0,92806.0,0.0107742]
[1765396265083,0.00016169,92810.0,92806.0,0.3715742]
[1765396265278,0.00016169,92810.0,92809.0,0.0107739]
[1765396265581,0.21973396,92840.0,92819.0,0.0107727]
[1765396265776,0.21865683,92830.0,92826.0,0.3608]
[1765396265983,0.00107713,92840.0,92826.0,0.3608]
[1765396266282,0.21973396,92840.0,92826.0,0.3715719]
[1765396266585,0.21973396,92840.0,92834.0,0.3608]
[1765396266784,0.21973396,92840.0,92826.0,0.3608]
[1765396266984,0.002,92830.0,92826.0,0.3608]
[1765396267479,0.22473396,92840.0,92826.0,0.3608]
[1765396267684,0.3608,92832.0,92824.0,0.0001616]
[1765396268283,0.002,92830.0,92824.0,0.0001616]
[1765396268681,0.006,92830.0,92824.0,0.0001616]
[1765396269279,0.0107721,92825.0,92796.0,0.3608]
[1765396269589,0.3608,92802.0,92789.0,0.0107762]
[1765396269784,0.57945683,92800.0,92789.0,0.0107762]
[1765396269980,0.21865683,92800.0,92793.0,0.0107757]
[1765396270184,0.3608,92802.0,92788.0,0.3608]
[1765396270383,0.21865683,92800.0,92788.0,0.3715763]
[1765396270771,0.0001616,92806.0,92803.0,0.0107745]
[1765396270978,0.0001616,92806.0,92805.0,0.3608]
[1765396271283,0.003,92825.0,92823.0,0.0107723]
[1765396271876,0.21865683,92833.0,92814.0,0.3608]
[1765396272182,0.0001616,92833.0,92832.0,0.3715712]
[1765396272375,0.0001616,92833.0,92832.0,0.7323712]
[1765396272571,0.0001616,92833.0,92832.0,0.0107712]
[1765396272777,0.00107713,92840.0,92839.0,0.0107704]
[1765396272977,0.00107713,92840.0,92839.0,0.3715704]
[1765396274082,0.00107713,92840.0,92839.0,0.3608]
[1765396274383,0.0001616,92849.0,92839.0,0.3608]
[1765396274584,0.0001616,92849.0,92848.0,0.0107694]
[1765396274780,0.0001616,92849.0,92848.0,0.3608]
[1765396275682,0.0001616,92849.0,92839.0,0.0001616]
[1765396275882,0.0021616,92849.0,92848.0,0.3608]
[1765396276084,0.3608,92877.0,92862.0,0.0107677]
[1765396276284,0.00107655,92890.0,92862.0,0.0107677]
[1765396276285,0.00107655,92890.0,92874.0,0.0107663]
[1765396276475,0.00107655,92890.0,92878.0,0.3608]
[1765396276675,0.00107655,92890.0,92864.0,0.3608]
[1765396276676,0.0107659,92878.0,92860.0,0.21865683]
[1765396276876,0.3608,92879.0,92851.0,0.3608]
[1765396276877,0.3608,92868.0,92851.0,0.3608]
[1765396277077,0.3608,92868.0,92850.0,0.21881834]
[1765396277287,0.002,92865.0,92850.0,0.00016151]
[1765396277483,0.3608,92859.0,92850.0,0.00016151]
[1765396277685,0.3608,92851.0,92850.0,1e-08]
[1765396277891,0.3608,92851.0,92820.0,0.21865683]
[1765396278073,0.3608,92829.0,92814.0,0.3608]
[1765396278275,0.3608,92829.0,92806.0,0.50424]
[1765396278475,0.3608,92821.0,92804.0,0.3608]
[1765396278680,0.3608,92821.0,92788.0,0.3608]
[1765396278982,0.3608,92806.0,92795.0,0.0001616]
[1765396279181,0.27388105,92810.0,92795.0,0.0001616]
[1765396279489,0.0107746,92804.0,92795.0,0.0001616]
[1765396279692,0.3608,92796.0,92795.0,0.0001616]
[1765396279992,0.0001616,92814.0,92807.0,0.0107741]
[1765396280176,0.0001616,92814.0,92795.0,0.3609616]
[1765396280382,0.3608,92806.0,92804.0,0.0107744]
[1765396280587,0.00011543,92805.0,92800.0,0.0107748]
[1765396280795,0.002,92804.0,92800.0,0.0107748]
[1765396281690,0.002,92804.0,92803.0,0.3608]
[1765396282091,0.0021616,92814.0,92813.0,0.0107734]
[1765396282394,0.0021616,92814.0,92813.0,0.3715734]
[1765396282590,0.0001616,92814.0,92813.0,0.3715734]
[1765396283094,0.00020333,92814.0,92813.0,0.3715734]
[1765396283295,0.00020333,92814.0,92813.0,0.3735734]
[1765396284188,0.00020333,92814.0,92813.0,0.3755734]
[1765396285497,0.00020333,92814.0,92813.0,0.3735734]
[1765396285797,0.00020333,92814.0,92813.0,0.0137734]
[1765396285987,0.00020333,92814.0,92813.0,0.3745734]
[1765396286184,0.00020333,92814.0,92813.0,0.3755734]
[1765396286890,0.00020333,92814.0,92813.0,0.3725734]
[1765396287300,0.3608,92827.0,92826.0,0.0107719]
[1765396287498,0.3608,92827.0,92813.0,0.3618]
[1765396287696,0.3608,92832.0,92816.0,0.3608]
[1765396287995,0.3608,92832.0,92828.0,0.0107717]
[1765396288686,0.3608,92832.0,92824.0,0.0107721]
[1765396288892,0.3608,92832.0,92821.0,0.0001616]
[1765396289094,0.0107723,92823.0,92821.0,0.0001616]
[1765396289301,0.3608,92824.0,92821.0,0.0001616]
[1765396289694,0.0107728,92819.0,92803.0,0.0107745]
[1765396290006,0.3608,92806.0,92803.0,0.0107745]
[1765396290201,0.3608,92806.0,92796.0,0.0107754]
[1765396290394,0.3608,92796.0,92795.0,0.0107755]
[1765396290798,0.0107755,92795.0,92786.0,0.0001616]
[1765396290990,0.3608,92796.0,92790.0,0.0107761]
[1765396291194,0.3715754,92796.0,92786.0,0.0109381]
[1765396291394,0.3715754,92796.0,92786.0,0.0001616]
[1765396291395,0.3608,92787.0,92786.0,0.0001616]
[1765396291814,0.3628,92796.0,92786.0,0.0001616]
[1765396291815,0.3628,92796.0,92795.0,0.0107755]
[1765396292191,0.3628,92796.0,92786.0,0.0001616]
[1765396292501,0.0001616,92805.0,92787.0,0.0107764]
[1765396292701,0.3608,92789.0,92787.0,0.0107765]
[1765396292905,0.0001616,92805.0,92800.0,0.0107749]
[1765396293108,0.0001616,92805.0,92803.0,0.0107745]
[1765396294413,0.0001616,92805.0,92791.0,0.3608]
[1765396294606,0.3608,92798.0,92786.0,0.0001616]
[1765396294908,0.3608,92798.0,92792.0,0.0107758]
[1765396295609,0.3608,92798.0,92797.0,0.0107753]
[1765396295805,0.0011616,92805.0,92795.0,0.0107755]
[1765396296011,0.0011616,92805.0,92804.0,0.0107745]
[1765396297714,0.0001616,92805.0,92804.0,0.3715745]
[1765396298310,0.3608,92832.0,92810.0,0.0107737]
[1765396298513,0.3608,92832.0,92819.0,0.3608]
[1765396298908,0.3608,92832.0,92829.0,0.0107715]
[1765396299313,0.3608,92832.0,92821.0,0.0001616]
[1765396299513,0.3608,92832.0,92827.0,0.0107718]
[1765396299906,0.3608,92832.0,92821.0,0.0001616]
[1765396300102,0.00010741,92840.0,92836.0,0.0107708]
[1765396300318,0.00010741,92840.0,92837.0,0.3608]
[1765396300510,0.001,92832.0,92829.0,0.0107716]
[1765396300904,0.00010741,92840.0,92839.0,0.0107704]
[1765396301104,0.00010741,92840.0,92839.0,0.3608]
[1765396301412,0.00210741,92840.0,92836.0,0.3608]
[1765396301611,0.00210741,92840.0,92831.0,0.3608]
[1765396301918,0.00010741,92840.0,92839.0,0.3608]
[1765396302116,0.00210741,92840.0,92839.0,0.3608]
[1765396302326,0.3608,92855.0,92831.0,0.3608]
[1765396302327,0.0107698,92845.0,92833.0,0.010771]
[1765396302510,0.3608,92855.0,92831.0,0.3608]
[1765396302712,0.0107702,92842.0,92831.0,0.3608]
[1765396302915,0.3608,92844.0,92831.0,0.3608]
[1765396303113,0.0107697,92846.0,92835.0,0.0107708]
[1765396303318,0.3608,92846.0,92831.0,0.3608]
[1765396303523,0.3715696,92846.0,92834.0,0.0107709]
[1765396303704,0.3715696,92846.0,92831.0,0.3608]
[1765396303705,0.3608,92846.0,92837.0,0.0107706]
[1765396303905,0.002,92840.0,92837.0,0.0107706]
[1765396304108,0.002,92840.0,92839.0,0.3608]
[1765396304615,0.08400735,92859.0,92839.0,0.3608]
[1765396304819,0.010768,92861.0,92851.0,0.010769]
[1765396305116,0.0107682,92859.0,92847.0,0.0107695]
[1765396305418,0.3608,92856.0,92840.0,0.0001616]
[1765396306321,0.3608,92856.0,92848.0,0.0107693]
[1765396306517,0.010769,92852.0,92840.0,0.0001616]
[1765396306719,0.3608,92848.0,92840.0,0.0001616]
[1765396306917,0.3715694,92848.0,92840.0,0.0001616]
[1765396307222,0.3608,92848.0,92840.0,0.0001616]
[1765396307419,0.01077,92843.0,92840.0,0.0001616]
[1765396308218,0.3608,92846.0,92840.0,0.0001616]
[1765396308628,0.0107697,92845.0,92840.0,0.0109318]
[1765396308812,0.3608,92846.0,92841.0,0.0107702]
[1765396309019,0.0107697,92845.0,92841.0,0.0107702]
[1765396309921,0.3608,92846.0,92843.0,0.0107699]
[1765396310122,0.3715697,92846.0,92843.0,0.0107699]
[1765396310628,0.3608,92846.0,92843.0,0.0107699]
[1765396310821,0.002,92845.0,92843.0,0.0107699]
[1765396311418,0.002,92845.0,92840.0,0.0001616]
[1765396311618,0.002,92845.0,92843.0,0.0107699]
[1765396312820,0.002,92845.0,92840.0,0.0001616]
[1765396313020,0.3608,92846.0,92843.0,0.0107699]
[1765396313327,0.002,92846.0,92840.0,0.0001616]
[1765396313635,0.0107702,92842.0,92840.0,0.0001616]
[1765396314023,0.3608,92844.0,92826.0,0.3608]
[1765396314024,0.3608,92844.0,92827.0,0.0107718]
[1765396314225,0.3608,92835.0,92826.0,0.3608]
[1765396314423,0.3608,92835.0,92817.0,0.3608]
[1765396314424,0.3608,92835.0,92824.0,0.0107722]
[1765396314617,0.0107712,92832.0,92817.0,0.3608]
[1765396314816,0.0107712,92833.0,92828.0,0.0107717]
[1765396315032,0.3715709,92835.0,92830.0,0.0107714]
[1765396315227,0.0001616,92840.0,92827.0,0.3608]
[1765396315428,0.0109319,92840.0,92835.0,0.0107708]
[1765396315626,0.0109319,92840.0,92827.0,0.3608]
[1765396315627,0.0001616,92840.0,92837.0,0.0107706]
[1765396316223,0.0001616,92840.0,92821.0,0.0001616]
[1765396316224,0.3608,92839.0,92821.0,0.0001616]
[1765396316429,0.3608,92828.0,92821.0,0.0001616]
[1765396316637,0.0107724,92823.0,92821.0,0.0001616]
[1765396317033,0.3608,92826.0,92821.0,0.0001616]
[1765396317225,0.3608,92826.0,92824.0,0.010772]
[1765396317531,0.3608,92829.0,92821.0,0.0001616]
[1765396317732,0.3608,92829.0,92821.0,0.0011616]
[1765396317920,0.3608,92829.0,92827.0,0.0107717]
[1765396318123,0.28481305,92840.0,92822.0,0.3608]
[1765396318323,0.010932,92840.0,92822.0,0.3608]
[1765396318519,0.08769256,92840.0,92822.0,0.3608]
[1765396318722,0.0001616,92840.0,92839.0,0.0107704]
[1765396318937,0.0001616,92840.0,92838.0,0.0107704]
[1765396319431,0.0001616,92840.0,92837.0,0.0107706]
[1765396320225,0.0021616,92840.0,92839.0,0.3608]
[1765396320526,0.3608,92883.0,92839.0,0.4408]
[1765396320730,0.3608,92883.0,92867.0,0.0107671]
[1765396321031,0.010766,92878.0,92870.0,0.0107668]
[1765396321235,0.010766,92878.0,92856.0,0.0107684]
[1765396321236,0.3608,92874.0,92864.0,0.3608]
[1765396321426,0.27388105,92880.0,92864.0,0.3608]
[1765396321627,0.27388105,92880.0,92860.0,0.00016151]
[1765396321834,0.0107662,92876.0,92860.0,0.00016151]
[1765396322035,0.3608,92869.0,92860.0,0.00016151]
[1765396322234,0.0107659,92879.0,92872.0,0.0107666]
[1765396322535,0.28464675,92880.0,92872.0,0.0107665]
[1765396322833,0.45479959,92883.0,92864.0,0.3608]
[1765396322834,0.45479959,92883.0,92875.0,0.0107662]
[1765396323034,0.0107654,92882.0,92864.0,0.3608]
[1765396323230,0.0107654,92882.0,92874.0,0.0107664]
[1765396323431,0.44779959,92883.0,92864.0,0.3608]
[1765396323631,0.0107655,92882.0,92864.0,0.3608]
[1765396323830,0.44779959,92883.0,92875.0,0.0107662]
[1765396324039,0.45179959,92883.0,92875.0,0.0107662]
[1765396324339,0.45179959,92883.0,92874.0,0.0107664]
[1765396324634,0.45179959,92883.0,92864.0,0.3608]
[1765396324635,0.0107657,92880.0,92870.0,0.0107667]
[1765396324846,0.45179959,92883.0,92873.0,0.0107664]
[1765396325029,0.0107654,92882.0,92873.0,0.0107664]
[1765396325232,0.72568064,92883.0,92864.0,0.3608]
[1765396325535,0.004,92882.0,92860.0,0.00016151]
[1765396325740,0.004,92882.0,92881.0,0.0107655]
[1765396326336,0.00107655,92890.0,92889.0,0.0107646]
[1765396327225,0.00107655,92890.0,92888.0,0.0107646]
[1765396327826,0.00107655,92890.0,92888.0,0.3715646]
[1765396328428,0.3608,92919.0,92916.0,0.0107615]
[1765396328628,0.3608,92919.0,92908.0,0.00016151]
[1765396328829,0.0107613,92918.0,92908.0,0.00016151]
[1765396329038,0.0107616,92915.0,92908.0,0.00016151]
[1765396329242,0.3608,92910.0,92908.0,0.00016151]
[1765396329544,0.3608,92929.0,92908.0,0.00016151]
[1765396329843,0.3608,92929.0,92913.0,0.0107618]
[1765396329844,0.0107602,92928.0,92913.0,0.0107618]
[1765396330349,0.004,92915.0,92908.0,0.00016151]
[1765396330732,0.010762,92912.0,92908.0,0.00016151]
[1765396331033,0.004,92915.0,92908.0,0.00016151]
[1765396331034,0.0107623,92909.0,92908.0,0.00016151]
[1765396331434,0.3608,92910.0,92887.0,0.3608]
[1765396331639,0.3608,92900.0,92887.0,0.3608]
[1765396331942,0.010761,92920.0,92896.0,0.3608]
[1765396332241,0.0107614,92918.0,92904.0,0.3608]
[1765396332541,0.3608,92910.0,92902.0,0.00016151]
[1765396332942,0.010763,92903.0,92902.0,0.00016151]
[1765396333138,0.010763,92903.0,92870.0,0.28464785]
[1765396333139,0.27388105,92900.0,92868.0,0.3608]
[1765396333337,0.3608,92893.0,92877.0,0.3608]
[1765396333542,0.3608,92893.0,92889.0,0.0107646]
[1765396333737,0.3608,92893.0,92878.0,0.0107658]
[1765396334044,0.3608,92893.0,92889.0,0.0107645]
[1765396334343,0.3608,92893.0,92877.0,0.3608]
[1765396334344,0.3608,92893.0,92892.0,0.0107643]
[1765396334639,0.3608,92893.0,92877.0,0.3608]
[1765396335040,0.3608,92893.0,92888.0,0.0107647]
[1765396335548,0.3618,92893.0,92877.0,0.3608]
[1765396335844,0.3618,92893.0,92884.0,0.0107651]
[1765396336041,0.3618,92893.0,92877.0,0.3608]
[1765396336343,0.3618,92893.0,92886.0,0.010765]
[1765396336539,0.001,92893.0,92890.0,0.0107645]
[1765396337733,0.00016151,92895.0,92894.0,0.010764]
[1765396338248,0.3608,92926.0,92913.0,0.0107618]
[1765396338442,0.3608,92918.0,92911.0,0.010762]
[1765396338639,0.3608,92918.0,92902.0,0.3608]
[1765396338845,0.3608,92918.0,92912.0,0.0107619]
[1765396339141,0.3608,92918.0,92914.0,0.0107617]
[1765396339552,0.003,92918.0,92917.0,0.0107614]
[1765396340043,0.003,92918.0,92912.0,0.3608]
[1765396340044,0.003,92918.0,92913.0,0.0107617]
[1765396340238,0.3638,92918.0,92909.0,0.0107623]
[1765396340637,0.3638,92918.0,92911.0,0.010762]
[1765396340840,0.3608,92918.0,92910.0,0.0107622]
[1765396341040,0.3638,92918.0,92910.0,0.0107622]
[1765396341449,0.003,92918.0,92916.0,0.0107615]
[1765396341646,0.00016121,92924.0,92916.0,0.0107615]
[1765396341847,0.003,92918.0,92916.0,0.0107615]
[1765396342446,0.00016121,92924.0,92923.0,0.0107607]
[1765396344037,0.00416121,92924.0,92923.0,0.0107607]
[1765396344647,0.00016121,92924.0,92923.0,0.0107607]
[1765396344844,0.00316121,92924.0,92923.0,0.0107607]
[1765396345151,0.00316121,92924.0,92923.0,0.3715607]
[1765396345342,0.00107597,92940.0,92939.0,0.0107588]
[1765396345939,0.3608,92955.0,92947.0,0.0107579]
[1765396346249,0.3608,92985.0,92964.0,0.0107559]
[1765396346451,0.3608,92985.0,92964.0,0.3715559]
[1765396346749,0.3608,92975.0,92964.0,0.3715559]
[1765396346947,0.08683786,92973.0,92964.0,0.3608]
[1765396347445,0.3608,92975.0,92964.0,0.3608]
[1765396347952,0.00307568,92965.0,92964.0,0.3608]
[1765396348153,0.00307568,92965.0,92963.0,0.010756]
[1765396348446,0.00307568,92965.0,92959.0,0.0107565]
[1765396348652,0.00307568,92965.0,92964.0,0.0107559]
[1765396348854,0.00307568,92965.0,92964.0,0.3715559]
[1765396349054,0.00307568,92965.0,92964.0,0.0107559]
[1765396349252,0.3608,92974.0,92973.0,0.0107549]
[1765396349444,0.3608,92984.0,92979.0,0.0107541]
[1765396349644,0.08677245,92997.0,92983.0,0.0107537]
[1765396349851,0.3608,92994.0,92988.0,0.0107531]
[1765396350050,0.3608,93005.0,92987.0,0.0107533]
[1765396350250,0.3608,92996.0,92980.0,0.3608]
[1765396350453,0.3608,92988.0,92980.0,0.3608]
[1765396350955,0.00407539,92990.0,92980.0,0.3608]
[1765396351343,0.00407539,92990.0,92968.0,0.3608]
[1765396351550,0.3608,92981.0,92973.0,0.0107549]
[1765396351744,0.003,92988.0,92978.0,0.0107542]
[1765396351953,0.003,92988.0,92981.0,0.010754]
[1765396352455,0.003,92988.0,92976.0,0.3608]
[1765396352456,0.003,92988.0,92986.0,0.0107533]
[1765396352652,0.003,92988.0,92984.0,0.3608]
[1765396352954,0.003,92988.0,92985.0,0.0107535]
[1765396353549,0.00307539,92990.0,92985.0,0.0107535]
[1765396354348,0.002,92988.0,92985.0,0.0107535]
[1765396354954,0.002,92988.0,92984.0,0.3608]
[1765396355159,0.00107539,92990.0,92984.0,0.3608]
[1765396355160,0.00307539,92990.0,92984.0,0.3715536]
[1765396355356,0.00307539,92990.0,92988.0,0.0107531]
[1765396355860,0.21734427,93020.0,92988.0,0.0107531]
[1765396355861,0.3608,93035.0,93019.0,0.0107496]
[1765396356160,0.08570143,93030.0,93018.0,0.0107497]
[1765396356357,0.08570143,93030.0,93022.0,0.0107492]
[1765396356860,0.3608,93035.0,93017.0,0.0107497]
[1765396357047,0.3715478,93035.0,93014.0,0.36096131]
[1765396357247,0.3715478,93035.0,93014.0,0.37096131]
[1765396357561,0.0107482,93031.0,93022.0,0.001]
[1765396357762,0.0107481,93033.0,93022.0,0.001]
[1765396358163,0.3608,93035.0,93021.0,0.0107493]
[1765396358763,0.3608,93026.0,93015.0,0.01075]
[1765396358968,0.0107489,93025.0,93014.0,0.36196131]
[1765396359266,0.3715488,93026.0,93014.0,0.00116131]
[1765396359652,0.3608,93026.0,93014.0,0.00116131]
[1765396359852,0.3715488,93026.0,93015.0,0.01075]
[1765396360047,0.3715488,93026.0,93014.0,0.00116131]
[1765396360048,0.3715488,93026.0,93014.0,0.01191141]
[1765396360454,0.3715488,93026.0,93022.0,0.001]
[1765396361262,0.3715488,93026.0,93014.0,0.00016131]
[1765396361263,0.3608,93026.0,93014.0,0.00016131]
[1765396361560,0.3618,93026.0,93014.0,0.00016131]
[1765396361759,0.3608,93016.0,93014.0,0.00016131]
[1765396361959,0.0107502,93014.0,93006.0,0.0107511]
[1765396362261,0.3608,93007.0,92990.0,0.21734427]
[1765396362450,0.3608,93007.0,92990.0,0.30734427]
[1765396362760,0.3608,93007.0,92994.0,0.0107524]
[1765396362963,0.3608,93007.0,92991.0,0.00016131]
[1765396363659,0.00016066,93010.0,93009.0,0.0107507]
[1765396363867,0.00016066,93010.0,93009.0,0.3715507]
[1765396365259,0.00016066,93010.0,93009.0,0.3725507]
[1765396365658,0.00016066,93010.0,93009.0,0.3618]
[1765396365861,0.00016066,93010.0,93009.0,0.003]
[1765396366669,0.00016066,93010.0,93009.0,0.0147507]
[1765396367271,0.00016066,93010.0,93009.0,0.3745507]
[1765396367461,0.00016066,93010.0,93009.0,0.0137507]
[1765396368669,0.00016066,93010.0,93009.0,0.0117507]
[1765396369470,0.00016066,93010.0,93005.0,0.0107511]
[1765396369668,0.00016066,93010.0,93009.0,0.001]
[1765396370369,0.00016066,93010.0,92998.0,0.0107519]
[1765396370574,0.01091126,93010.0,93009.0,0.002]
[1765396370775,0.00016066,93010.0,93009.0,0.002]
[1765396371266,0.00016066,93010.0,93008.0,0.0107508]
[1765396372057,6.6e-07,93010.0,93008.0,0.0107508]
[1765396372457,6.6e-07,93010.0,93008.0,0.0907508]
[1765396373166,6.6e-07,93010.0,93009.0,0.001]
[1765396373870,6.6e-07,93010.0,93008.0,0.0117508]
[1765396374062,6.6e-07,93010.0,93008.0,0.0947508]
[1765396374263,6.6e-07,93010.0,93008.0,0.0937508]
[1765396374466,6.6e-07,93010.0,93009.0,0.002]
[1765396374971,6.6e-07,93010.0,93009.0,0.0107507]
[1765396375763,6.6e-07,93010.0,93009.0,0.0127507]
[1765396376375,0.00021499,93027.0,93026.0,0.0107488]
[1765396378365,0.00021499,93027.0,93026.0,0.0127488]
[1765396378974,0.00021499,93027.0,93026.0,0.0147488]
[1765396379173,0.00021499,93027.0,93026.0,0.004]
[1765396379670,0.00021499,93027.0,93026.0,0.002]
[1765396379871,0.00021499,93027.0,93026.0,0.004]
[1765396380569,0.00021499,93027.0,93026.0,0.0117488]
[1765396381484,0.3608,93039.0,93038.0,0.0107474]
[1765396381660,0.00107481,93040.0,93038.0,0.0107474]
[1765396382768,0.3608,93060.0,93038.0,0.08]
[1765396382769,0.3608,93052.0,93038.0,0.08]
[1765396382965,0.3608,93052.0,93044.0,0.0107466]
[1765396383365,0.08485547,93062.0,93044.0,0.3608]
[1765396383574,0.3608,93060.0,93040.0,0.21734427]
[1765396383771,0.3608,93060.0,93048.0,0.0107462]
[1765396383967,0.57814427,93060.0,93051.0,0.0107459]
[1765396384172,0.003,93052.0,93051.0,0.0107459]
[1765396385667,0.3638,93060.0,93055.0,0.0107454]
[1765396386277,0.3638,93060.0,93052.0,0.0107457]
[1765396386473,0.3608,93060.0,93052.0,0.0107457]
[1765396386775,0.0107442,93066.0,93052.0,0.3715457]
[1765396386970,0.08407852,93066.0,93052.0,0.3608]
[1765396387164,0.3608,93069.0,93052.0,0.3608]
[1765396387165,0.0107454,93055.0,93052.0,0.3608]
[1765396387368,0.0107456,93054.0,93036.0,0.00016122]
[1765396387564,0.0107468,93043.0,93036.0,0.00016122]
[1765396387766,0.3715467,93044.0,93036.0,0.00016122]
[1765396388173,0.21734427,93046.0,93045.0,0.0107466]
[1765396388374,0.002,93060.0,93044.0,0.3608]
[1765396388581,0.002,93060.0,93055.0,0.0107454]
[1765396388780,0.3608,93064.0,93055.0,0.0107454]
[1765396388979,0.3608,93064.0,93057.0,0.0107451]
[1765396389181,0.3608,93064.0,93060.0,0.0107448]
[1765396389678,0.0107447,93062.0,93054.0,0.0107455]
[1765396389873,0.3608,93064.0,93036.0,0.00016122]
[1765396389874,0.0107458,93052.0,93036.0,0.00016122]
[1765396390186,0.3608,93046.0,93044.0,0.0107466]
[1765396390683,0.3608,93046.0,93043.0,0.0107467]
[1765396390987,0.3608,93046.0,93036.0,0.00016122]
[1765396391172,0.0107466,93045.0,93039.0,0.0107472]
[1765396391477,0.3608,93046.0,93040.0,0.0107471]